fUST/lending_fUST_20241107
["ID","MTS","AMOUNT","RATE_DAILY","PERIOD"]
[341512197,1730939443580,-500.0,0.00028493,2]
[341512198,1730939443589,-500.0,0.00028493,2]
[341512199,1730939443598,-500.0,0.00028493,2]
[341512200,1730939443608,-676.2,0.00028493,2]
[341512201,1730939443617,-501.3,0.00028493,2]
[341512202,1730939443627,-500.0,0.00028493,2]
[341512203,1730939443636,-500.0,0.00028493,2]
[341512204,1730939443645,-500.65,0.00028493,2]
[341512205,1730939443654,-566.23,0.00028493,2]
[341512206,1730939443664,-500.0,0.00028493,2]
[341512207,1730939443674,-3955.61,0.000285,30]
[341512208,1730939443686,-151.0,0.000285,7]
[341512209,1730939443695,-151.0,0.000285,7]
[341512210,1730939443704,-175.623814,0.000285,7]
[341512211,1730939443714,-175.623814,0.000285,7]
[341512212,1730939443723,-151.0,0.000285,7]
[341512213,1730939443732,-151.0,0.000285,7]
[341512214,1730939443741,-264.88370388,0.0002853,2]
[341512215,1730939443751,-160.0,0.00028559,5]
[341512216,1730939443760,-397.691879,0.0002861,30]
[341512217,1730939443769,-808.80746148,0.00028742,5]
[341512218,1730939443778,-1000.0,0.00028742,5]
[341512219,1730939443788,-1000.0,0.00028742,2]
[341512220,1730939443800,-480.47877786,0.00028767,2]
[341512221,1730939443810,-500.0,0.00028767,2]
[341512222,1730939443819,-500.0,0.00028767,2]
[341512223,1730939443828,-500.0,0.00028767,2]
[341512224,1730939443837,-645.6062523,0.00028767,2]
[341512225,1730939443847,-500.0,0.00028767,2]
[341512226,1730939443856,-500.0,0.00028767,2]
[341512227,1730939443865,-500.0,0.00028767,2]
[341512228,1730939443875,-500.0,0.00028767,2]
[341512229,1730939443885,-500.0,0.00028767,2]
[341512230,1730939443894,-2812.1,0.00028767,2]
[341512231,1730939443904,-1204.95,0.00028767,2]
[341512232,1730939443913,-3486.07,0.00028767,2]
[341512233,1730939443923,-873.85,0.00028767,2]
[341512234,1730939443936,-207.32963497,0.00028767,2]
[341512235,1730939443946,-548.47,0.00028767,2]
[341512236,1730939443955,-535.52131065,0.00028767,2]
[341512237,1730939443964,-671.66,0.00028767,2]
[341512238,1730939443974,-500.0,0.00028767,2]
[341512239,1730939443984,-500.0,0.00028767,2]
[341512240,1730939443994,-7062.9,0.00028767,2]
[341512241,1730939444003,-1352.34,0.00028767,2]
[341512242,1730939444013,-501.6,0.00028767,2]
[341512243,1730939444023,-1336.01,0.00028767,2]
[341512244,1730939444032,-706.86,0.00028767,2]
[341512245,1730939444042,-500.0,0.00028767,2]
[341512246,1730939444051,-500.0,0.00028767,2]
[341512247,1730939444061,-500.0,0.00028767,2]
[341512248,1730939444070,-500.0,0.00028767,2]
[341512249,1730939444079,-500.0,0.00028767,2]
[341512250,1730939444089,-552.99,0.00028767,2]
[341512251,1730939444099,-500.0,0.00028767,2]
[341512252,1730939444108,-647.91584085,0.00028767,2]
[341512253,1730939444117,-500.0,0.00028767,2]
[341512254,1730939444126,-676.2,0.00028767,2]
[341512255,1730939444136,-501.3,0.00028767,2]
[341512256,1730939444146,-549.73109224,0.00028767,2]
[341512257,1730939444155,-500.0,0.00028767,2]
[341512258,1730939444163,-500.65,0.00028767,2]
[341512259,1730939444173,-566.23,0.00028767,2]
[341512260,1730939444183,-500.0,0.00028767,2]
[341512261,1730939444193,-160.0,0.0002896,6]
[341512262,1730939444202,-150.0,0.00029,2]
[341512263,1730939444212,-151.0,0.00029,7]
[341512264,1730939444222,-175.623814,0.00029,7]
[341512265,1730939444231,-175.623814,0.00029,7]
[341512266,1730939444241,-264.88370388,0.0002901,2]
[341512267,1730939444250,-474.23186494,0.00029041,2]
[341512268,1730939444259,-500.0,0.00029041,2]
[341512269,1730939444268,-500.0,0.00029041,2]
[341512270,1730939444278,-500.0,0.00029041,2]
[341512271,1730939444287,-500.0,0.00029041,2]
[341512272,1730939444296,-500.0,0.00029041,2]
[341512273,1730939444306,-1129.24209142,0.00029041,28]
[341512274,1730939444315,-500.0,0.00029041,2]
[341512275,1730939444325,-350.23126577,0.00029041,2]
[341512276,1730939444335,-2812.1,0.00029041,2]
[341512277,1730939444345,-1204.95,0.00029041,2]
[341512278,1730939444354,-3486.07,0.00029041,2]
[341512279,1730939444363,-873.85,0.00029041,2]
[341512280,1730939444372,-548.47,0.00029041,2]
[341512281,1730939444381,-671.66,0.00029041,2]
[341512282,1730939444390,-500.0,0.00029041,2]
[341512283,1730939444401,-175.623814,0.00029041,7]
[341512284,1730939444410,-175.623814,0.00029041,7]
[341512285,1730939444419,-500.0,0.00029041,2]
[341512286,1730939444429,-7062.9,0.00029041,2]
[341512287,1730939444439,-1352.34,0.00029041,2]
[341512288,1730939444448,-501.6,0.00029041,2]
[341512289,1730939444528,-1336.01,0.00029041,2]
[341512290,1730939444539,-706.86,0.00029041,2]
[341512291,1730939444548,-500.0,0.00029041,2]
[341512292,1730939444559,-500.0,0.00029041,2]
[341512293,1730939444569,-500.0,0.00029041,2]
[341512294,1730939444579,-500.0,0.00029041,2]
[341512295,1730939444589,-151.0,0.00029041,7]
[341512296,1730939444598,-151.0,0.00029041,7]
[341512297,1730939444608,-500.0,0.00029041,2]
[341512298,1730939444619,-552.99,0.00029041,2]
[341512299,1730939444630,-500.0,0.00029041,2]
[341512300,1730939444640,-500.0,0.00029041,2]
[341512301,1730939444649,-676.2,0.00029041,2]
[341512302,1730939444658,-501.3,0.00029041,2]
[341512303,1730939444667,-351.89465849,0.00029041,2]
[341512304,1730939444676,-500.65,0.00029041,2]
[341512305,1730939444687,-566.23,0.00029041,2]
[341512306,1730939444696,-500.0,0.00029041,2]
[341512307,1730939444705,-792.4423929,0.00029193,2]
[341512308,1730939444714,-175.623814,0.00029293,7]
[341512309,1730939444725,-175.623814,0.00029293,7]
[341512310,1730939444735,-394.53,0.000293,14]
[341512311,1730939444744,-15441.21,0.000293,30]
[341512312,1730939444759,-543.23053733,0.00029315,2]
[341512313,1730939444777,-500.0,0.00029315,2]
[341512314,1730939444788,-500.0,0.00029315,2]
[341512315,1730939444801,-500.0,0.00029315,2]
[341512316,1730939444811,-500.0,0.00029315,2]
[341512317,1730939444823,-604.71,0.00029315,2]
[341512318,1730939444833,-2812.1,0.00029315,2]
[341512319,1730939444845,-1204.95,0.00029315,2]
[341512320,1730939444855,-3486.07,0.00029315,2]
[341512321,1730939444865,-873.85,0.00029315,2]
[341512322,1730939444875,-548.47,0.00029315,2]
[341512323,1730939444886,-671.66,0.00029315,2]
[341512324,1730939444896,-500.0,0.00029315,2]
[341512325,1730939444906,-175.623814,0.00029315,7]
[341512326,1730939444916,-175.623814,0.00029315,7]
[341512327,1730939444926,-500.0,0.00029315,2]
[341512328,1730939444938,-7062.9,0.00029315,2]
[341512329,1730939444948,-1352.34,0.00029315,2]
[341512330,1730939444958,-501.6,0.00029315,2]
[341512331,1730939444967,-1336.01,0.00029315,2]
[341512332,1730939444977,-706.86,0.00029315,2]
[341512333,1730939444987,-500.0,0.00029315,2]
[341512334,1730939444997,-500.0,0.00029315,2]
[341512335,1730939445007,-500.0,0.00029315,2]
[341512336,1730939445017,-151.0,0.00029315,7]
[341512337,1730939445026,-500.0,0.00029315,2]
[341512338,1730939445036,-552.99,0.00029315,2]
[341512339,1730939445046,-500.0,0.00029315,2]
[341512340,1730939445056,-500.0,0.00029315,2]
[341512341,1730939445067,-676.2,0.00029315,2]
[341512342,1730939445077,-501.3,0.00029315,2]
[341512343,1730939445087,-500.65,0.00029315,2]
[341512344,1730939445097,-566.23,0.00029315,2]
[341512345,1730939445107,-219.19117222,0.00029315,2]
[341512346,1730939445202,-280.80882778,0.00029315,2]
[341512347,1730939445212,-587.0,0.00029339,2]
[341512348,1730939445222,-160.0,0.00029361,7]
[341512349,1730939445231,-367.79904922,0.0002939,5]
[341512350,1730939445241,-500.0,0.0002939,5]
[341512351,1730939445250,-264.88370388,0.00029489,2]
[341512352,1730939445260,-500.0,0.00029589,2]
[341512353,1730939445270,-500.0,0.00029589,2]
[341512354,1730939445279,-500.0,0.00029589,2]
[341512355,1730939445288,-250.45389701,0.00029589,2]
[341512356,1730939445297,-2812.1,0.00029589,2]
[341512357,1730939445307,-1204.95,0.00029589,2]
[341512358,1730939445316,-3486.07,0.00029589,2]
[341512359,1730939445324,-873.85,0.00029589,2]
[341512360,1730939445334,-548.47,0.00029589,2]
[341512361,1730939445348,-671.66,0.00029589,2]
[341512362,1730939445358,-500.0,0.00029589,2]
[341512363,1730939445367,-500.0,0.00029589,2]
[341512364,1730939445377,-7062.9,0.00029589,2]
[341512365,1730939445388,-1352.34,0.00029589,2]
[341512366,1730939445399,-501.6,0.00029589,2]
[341512367,1730939445410,-1336.01,0.00029589,2]
[341512368,1730939445420,-706.86,0.00029589,2]
[341512369,1730939445432,-500.0,0.00029589,2]
[341512370,1730939445441,-500.0,0.00029589,2]
[341512371,1730939445450,-500.0,0.00029589,2]
[341512372,1730939445459,-151.0,0.00029589,7]
[341512373,1730939445469,-500.0,0.00029589,2]
[341512374,1730939445478,-552.99,0.00029589,2]
[341512375,1730939445487,-500.0,0.00029589,2]
[341512376,1730939445497,-500.0,0.00029589,2]
[341512377,1730939445506,-676.2,0.00029589,2]
[341512378,1730939445515,-39.07036279,0.00029589,2]
[341512379,1730939445613,164.04518,0.00013973,2]
[341512383,1730939446007,-153.0,0.00026688,2]
[341512384,1730939446018,-303.4019452,0.00026962,2]
[341512386,1730939446029,-164.04518,0.00027641,2]
[341512388,1730939446039,-297.84,0.00028341,10]
[341512390,1730939446049,-500.0,0.00028493,2]
[341512391,1730939446059,-500.0,0.00028767,2]
[341512392,1730939446068,-2.30002568,0.00028767,28]
[341512393,1730939446080,-397.40393538,0.00028767,28]
[341512394,1730939446092,-469.7928632,0.00028767,28]
[341512401,1730939446512,-130.50317574,0.00028767,28]
[341512402,1730939446522,-1000.0,0.00028767,28]
[341512403,1730939446532,-1000.0,0.00028767,28]
[341512404,1730939446542,-1000.0,0.00028767,28]
[341512405,1730939446552,-530.10657317,0.00028767,28]
[341512407,1730939446564,-469.89342683,0.00028767,28]
[341512409,1730939446574,-1000.0,0.00028767,28]
[341512411,1730939446584,-74.54957372,0.00028767,28]
[341512414,1730939718047,1169.27083333,0.0002083,2]
[341512415,1730939871939,43753.7267,0.00032624,30]
[341512417,1730939993182,164.85398,0.00013973,2]
[341512425,1730940329342,1169.27083333,0.0002083,2]
[341512455,1730940498459,163.612117,0.00013973,2]
[341512498,1730940632734,-166.601457,0.00024869,2]
[341512499,1730940632773,-175.43930288,0.00025175,2]
[341512500,1730940632786,-28.05001772,0.00025175,2]
[341512501,1730940632796,-174.775794,0.00025295,2]
[341512502,1730940632805,-300.0,0.00025389,2]
[341512503,1730940632815,-300.0,0.00025389,2]
[341512504,1730940632824,-16177.1139001,0.0002539,2]
[341512505,1730940632833,-202.35794,0.00025416,2]
[341512506,1730940632845,-5922.3422156,0.00025578,2]
[341512507,1730940632854,-1169.27083333,0.00025578,2]
[341512508,1730940632863,-2459.16786256,0.00027297,2]
[341512509,1730940632872,-264.32309386,0.00027397,2]
[341512510,1730940632881,-501.82290906,0.00027397,2]
[341512511,1730940632891,-396.6100146,0.00027397,2]
[341512512,1730940632900,-516.05753601,0.00027397,2]
[341512513,1730940632910,-515.23362117,0.00027397,2]
[341512514,1730940632920,-288.91871694,0.00027397,2]
[341512515,1730940632930,-500.0,0.00027397,2]
[341512516,1730940632940,-524.5569005,0.00027397,2]
[341512517,1730940632951,-504.60785418,0.00027397,2]
[341512518,1730940632961,-510.05901299,0.00027397,2]
[341512519,1730940632970,-565.09796125,0.00027397,2]
[341512520,1730940632979,-500.0,0.00027397,2]
[341512521,1730940632989,-500.0,0.00027397,2]
[341512522,1730940632999,-507.96097464,0.00027397,2]
[341512523,1730940633008,-508.85776512,0.00027397,2]
[341512524,1730940633017,-500.0,0.00027397,2]
[341512525,1730940633026,-510.10583659,0.00027397,2]
[341512526,1730940633036,-500.0,0.00027397,2]
[341512527,1730940633045,-263.77191595,0.00027397,2]
[341512528,1730940633054,-500.0,0.00027397,2]
[341512529,1730940633063,-512.75098867,0.00027397,2]
[341512530,1730940633073,-517.97887837,0.00027397,2]
[341512531,1730940633082,-500.0,0.00027397,2]
[341512532,1730940633093,-512.31636041,0.00027397,2]
[341512533,1730940633103,-500.0,0.00027397,2]
[341512534,1730940633112,-500.0,0.00027397,2]
[341512535,1730940633123,-512.26399439,0.00027397,2]
[341512536,1730940633132,-506.56757609,0.00027397,2]
[341512537,1730940633141,-500.0,0.00027397,2]
[341512538,1730940633151,-504.31928706,0.00027397,2]
[341512539,1730940633160,-500.0,0.00027397,2]
[341512540,1730940633170,-500.0,0.00027397,2]
[341512541,1730940633179,-500.0,0.00027397,2]
[341512542,1730940633189,-500.0,0.00027397,2]
[341512543,1730940633199,-500.0,0.00027397,2]
[341512544,1730940633208,-500.0,0.00027397,2]
[341512545,1730940633217,-500.0,0.00027397,2]
[341512546,1730940633227,-644.0414814,0.00027397,2]
[341512547,1730940633237,-500.0,0.00027397,2]
[341512548,1730940633246,-500.0,0.00027397,2]
[341512549,1730940633255,-353.32460246,0.00027397,2]
[341512550,1730940633265,-500.0,0.00027397,2]
[341512551,1730940633275,-500.0,0.00027397,2]
[341512552,1730940633284,-500.0,0.00027397,2]
[341512553,1730940633293,-728.21,0.00027397,2]
[341512554,1730940633302,-500.0,0.00027397,2]
[341512555,1730940633312,-500.0,0.00027397,2]
[341512556,1730940633321,-423.42912549,0.00027397,2]
[341512557,1730940633331,-500.0,0.00027397,2]
[341512558,1730940633343,-500.0,0.00027397,2]
[341512559,1730940633353,-315.87660318,0.00027397,2]
[341512560,1730940633362,-2411.36,0.00027397,2]
[341512561,1730940633371,-500.0,0.00027397,2]
[341512562,1730940633380,-980.32825726,0.00027397,2]
[341512577,1730940638808,-23.79174274,0.00027397,2]
[341512578,1730940638819,-2914.98,0.00027397,2]
[341512579,1730940638830,-589.05,0.00027397,2]
[341512580,1730940638839,-500.0,0.00027397,2]
[341512581,1730940638852,-559.72,0.00027397,2]
[341512582,1730940638862,-370.58946631,0.00027397,2]
[341512583,1730940638872,-500.0,0.00027397,2]
[341512584,1730940638881,-196.06923042,0.00027397,2]
[341512585,1730940638891,-5885.75,0.00027397,2]
[341512586,1730940638901,-500.0,0.00027397,2]
[341512587,1730940638911,-500.0,0.00027397,2]
[341512588,1730940638920,-500.0,0.00027397,2]
[341512589,1730940638929,-638.6538105,0.00027397,2]
[341512590,1730940638939,-233.05547411,0.00027397,2]
[341512591,1730940638949,-500.0,0.00027397,2]
[341512592,1730940638958,-506.29511336,0.00027397,2]
[341512593,1730940638967,-500.0,0.00027397,2]
[341512594,1730940638977,-500.0,0.00027397,2]
[341512595,1730940638986,-368.41315284,0.00027397,2]
[341512596,1730940638996,-500.0,0.00027397,2]
[341512597,1730940639006,-500.0,0.00027397,2]
[341512598,1730940639015,-500.0,0.00027397,2]
[341512599,1730940639025,-500.0,0.00027397,2]
[341512600,1730940639035,-500.0,0.00027397,2]
[341512601,1730940639044,-500.0,0.00027397,2]
[341512602,1730940639054,-196.26702558,0.00027397,2]
[341512603,1730940639063,-500.0,0.00027397,2]
[341512604,1730940639073,-591.68,0.00027397,2]
[341512606,1730940639083,-500.0,0.00027397,2]
[341512607,1730940639097,-519.04,0.00027397,2]
[341512608,1730940639108,-504.07791051,0.00027397,2]
[341512609,1730940639119,-420.0,0.00027494,2]
[341512610,1730940639130,-248.2,0.00027661,10]
[341512611,1730940639140,-206.84,0.00027661,10]
[341512612,1730940639151,-172.36,0.00027661,10]
[341512613,1730940639160,-500.0,0.0002767,2]
[341512614,1730940639170,-374.44992088,0.0002767,2]
[341512615,1730940639179,-1113.35,0.0002767,2]
[341512616,1730940639188,-500.0,0.0002767,2]
[341512617,1730940639198,-500.0,0.00027671,2]
[341512618,1730940639208,-500.0,0.00027671,2]
[341512619,1730940639218,-500.0,0.00027671,2]
[341512620,1730940639227,-500.54403551,0.00027671,2]
[341512621,1730940639237,-500.0,0.00027671,2]
[341512622,1730940639248,-500.0,0.00027671,2]
[341512623,1730940639257,-500.0,0.00027671,2]
[341512624,1730940639267,-500.0,0.00027671,2]
[341512625,1730940639276,-500.0,0.00027671,2]
[341512626,1730940639286,-331.81604586,0.00027671,2]
[341512627,1730940639296,-500.0,0.00027671,2]
[341512628,1730940639307,-645.6062523,0.00027671,2]
[341512629,1730940639319,-500.0,0.00027671,2]
[341512630,1730940639330,-500.0,0.00027671,2]
[341512631,1730940639339,-500.0,0.00027671,2]
[341512632,1730940639351,-500.0,0.00027671,2]
[341512633,1730940639362,-500.0,0.00027671,2]
[341512634,1730940639372,-500.0,0.00027671,2]
[341512635,1730940639381,-473.88296568,0.00027671,2]
[341512636,1730940639390,-500.0,0.00027671,2]
[341512637,1730940639399,-500.0,0.00027671,2]
[341512638,1730940639409,-728.21,0.00027671,2]
[341512639,1730940639418,-500.0,0.00027671,2]
[341512640,1730940639427,-500.0,0.00027671,2]
[341512641,1730940639437,-500.0,0.00027671,2]
[341512642,1730940639446,-500.0,0.00027671,2]
[341512643,1730940639455,-2411.36,0.00027671,2]
[341512644,1730940639465,-500.0,0.00027671,2]
[341512645,1730940639475,-1004.12,0.00027671,2]
[341512646,1730940639487,-2914.98,0.00027671,2]
[341512647,1730940639500,-589.05,0.00027671,2]
[341512648,1730940639509,-500.0,0.00027671,2]
[341512649,1730940639521,-559.72,0.00027671,2]
[341512650,1730940639531,-500.0,0.00027671,2]
[341512651,1730940639542,-5885.75,0.00027671,2]
[341512652,1730940639554,-500.0,0.00027671,2]
[341512653,1730940639563,-500.0,0.00027671,2]
[341512654,1730940639572,-500.0,0.00027671,2]
[341512655,1730940639581,-504.06978989,0.00027671,2]
[341512656,1730940639590,-500.0,0.00027671,2]
[341512657,1730940639601,-500.0,0.00027671,2]
[341512658,1730940639611,-500.0,0.00027671,2]
[341512659,1730940639621,-500.0,0.00027671,2]
[341512660,1730940639631,-500.0,0.00027671,2]
[341512661,1730940639640,-500.0,0.00027671,2]
[341512662,1730940639650,-500.0,0.00027671,2]
[341512663,1730940639659,-500.0,0.00027671,2]
[341512664,1730940639669,-591.68,0.00027671,2]
[341512665,1730940639678,-500.0,0.00027671,2]
[341512666,1730940639690,-519.04,0.00027671,2]
[341512667,1730940639702,-505.19522563,0.00027673,5]
[341512668,1730940639712,-262.81531371,0.00027845,2]
[341512669,1730940639722,-420.0,0.00027928,2]
[341512670,1730940639732,-1113.35,0.00027944,2]
[341512671,1730940639741,-500.0,0.00027944,2]
[341512672,1730940639752,-500.0,0.00027945,2]
[341512673,1730940639767,-500.0,0.00027945,2]
[341512674,1730940639776,-504.75511089,0.00027945,2]
[341512675,1730940639785,-500.0,0.00027945,2]
[341512676,1730940639795,-500.0,0.00027945,2]
[341512677,1730940639804,-500.0,0.00027945,2]
[341512678,1730940639815,-500.0,0.00027945,2]
[341512679,1730940639826,-500.0,0.00027945,2]
[341512680,1730940639837,-500.0,0.00027945,2]
[341512681,1730940639851,-500.0,0.00027945,2]
[341512682,1730940639862,-500.0,0.00027945,2]
[341512683,1730940639871,-500.0,0.00027945,2]
[341512684,1730940639880,-500.0,0.00027945,2]
[341512685,1730940639889,-500.0,0.00027945,2]
[341512686,1730940639899,-500.0,0.00027945,2]
[341512687,1730940639909,-500.0,0.00027945,2]
[341512688,1730940639920,-728.21,0.00027945,2]
[341512689,1730940639930,-207.32963497,0.00027945,2]
[341512690,1730940639940,-500.0,0.00027945,2]
[341512691,1730940639949,-500.0,0.00027945,2]
[341512692,1730940639959,-500.0,0.00027945,2]
[341512693,1730940639969,-2411.36,0.00027945,2]
[341512694,1730940639979,-500.0,0.00027945,2]
[341512695,1730940639989,-1004.12,0.00027945,2]
[341512696,1730940639998,-2914.98,0.00027945,2]
[341512697,1730940640007,-589.05,0.00027945,2]
[341512698,1730940640017,-535.52131065,0.00027945,2]
[341512699,1730940640026,-559.72,0.00027945,2]
[341512700,1730940640035,-151.38775223,0.00027945,2]
[341512701,1730940640052,-329.09102563,0.00027945,2]
[341512702,1730940640061,-165.06408884,0.00027945,2]
[341512777,1730940940532,1169.27083333,0.0002083,2]
[341512778,1730941093315,164.718545,0.00013973,2]
[341512780,1730941203771,500.0,0.0001,2]
[341512781,1730941204150,500.0,0.0001,2]
[341512782,1730941204530,500.0,0.0001,2]
[341512783,1730941205012,500.0,0.0001,2]
[341512784,1730941482296,8463.06424041,0.00019798,2]
[341512785,1730941482614,8463.06424041,0.00020053,2]
[341512786,1730941483066,8463.06424041,0.00020442,2]
[341512787,1730941483374,8463.06424041,0.00020809,2]
[341512788,1730941503146,4014.0,0.00020185,2]
[341512789,1730941529027,6140.0390119,0.00020603,2]
[341512790,1730941551929,1169.27083333,0.0002083,2]
[341512791,1730941618429,163.292573,0.00013973,2]
[341512812,1730941837929,-253.292176,0.00023747,2]
[341512813,1730941837939,-1374.29273451,0.00023747,2]
[341512814,1730941837951,-1625.70726549,0.00023747,2]
[341512815,1730941837960,-1065.56,0.00024,2]
[341512816,1730941837969,-300.0,0.00024001,2]
[341512817,1730941837978,-300.0,0.00024001,2]
[341512818,1730941837987,-8463.06424041,0.00024002,2]
[341512819,1730941837996,-599.30901034,0.00024005,2]
[341512820,1730941838006,-8463.06424041,0.0002418,2]
[341512821,1730941838015,-8463.06424041,0.00024438,2]
[341512822,1730941838026,-176.2153959,0.00024885,2]
[341512823,1730941838035,-8463.06424041,0.00024885,2]
[341512824,1730941838045,-8463.06424041,0.00025061,2]
[341512825,1730941838057,-8463.06424041,0.00025308,2]
[341512826,1730941838066,-8463.06424041,0.00025742,2]
[341512827,1730941838076,-159.742,0.0002583,30]
[341512828,1730941838085,-8463.06424041,0.00025867,2]
[341512829,1730941838094,-1065.56,0.00026,2]
[341512830,1730941838103,-151.0,0.00026011,7]
[341512831,1730941838112,-420.0,0.00026028,2]
[341512832,1730941838122,-8463.06424041,0.00026041,2]
[341512833,1730941838131,-8463.06424041,0.00026436,2]
[341512834,1730941838141,-159.714,0.0002657,14]
[341512835,1730941838150,-150.0,0.0002668,2]
[341512836,1730941838160,-1135.0,0.0002668,2]
[341512837,1730941838178,-529.0,0.0002668,2]
[341512838,1730941838190,-2393.0,0.0002668,2]
[341512839,1730941838201,-861.84,0.00026714,10]
[341512840,1730941838211,-191.74127032,0.00026723,2]
[341512841,1730941838220,-8463.06424041,0.00026724,2]
[341512842,1730941838230,-2151.77187974,0.00026744,2]
[341512843,1730941838240,-808.01473999,0.00026971,2]
[341512844,1730941838253,-953.84113845,0.00026971,2]
[341512849,1730941840182,-2033.17155022,0.00026971,2]
[341512888,1730941842992,-4668.03681175,0.00026971,2]
[341512889,1730941843003,-16320.62616596,0.00027039,2]
[341512905,1730941845903,-141099.30103078,0.00027039,2]
[341512944,1730942124165,164.245953,0.00013973,2]
[341512945,1730942168270,1169.27083333,0.0002083,2]
[341512960,1730942631150,163.021789,0.00013973,2]
[341512965,1730942783704,1169.27083333,0.0002083,2]
[341512966,1730942791643,252.734598,0.00020609,2]
[341512969,1730942858354,2011.314552,0.00020322,2]
[341512970,1730942902825,163.645106,0.00020275,2]
[341512971,1730942903061,163.645106,0.00020284,2]
[341512972,1730942903260,163.645106,0.00020293,2]
[341512973,1730942903583,163.645106,0.00020302,2]
[341512974,1730942903813,163.645106,0.00020311,2]
[341512975,1730942904058,163.645106,0.00020321,2]
[341512976,1730942904281,163.645106,0.0002033,2]
[341512977,1730942909405,163.645106,0.00020339,2]
[341512978,1730942909601,163.645106,0.00020348,2]
[341512979,1730942909819,163.645106,0.00020357,2]
[341512980,1730942910029,163.645106,0.00020367,2]
[341512981,1730942910239,163.645106,0.00020376,2]
[341512982,1730942926834,18803.46474308,0.0001,2]
[341512983,1730942930544,1000.0,0.0001,2]
[341513063,1730942990963,8262.19482367,0.00020821,2]
[341513132,1730943032637,-323.76241759,0.00020856,2]
[341513152,1730943038673,-7938.43240608,0.00020856,2]
[341513153,1730943038683,-300.0,0.00020935,2]
[341513154,1730943038692,-24900.0,0.00020936,2]
[341513155,1730943038703,-539.42575764,0.00021228,2]
[341513156,1730943038713,-8262.19482367,0.00021228,2]
[341513157,1730943038722,-373.55444104,0.00021431,2]
[341513158,1730943038732,-500.0,0.00021431,2]
[341513159,1730943038741,-549.07620561,0.00021431,2]
[341513160,1730943038751,-287.01154794,0.00021431,2]
[341513161,1730943038761,-509.48842417,0.00021431,2]
[341513162,1730943038770,-500.0,0.00021431,2]
[341513164,1730943038780,-500.0,0.00021431,2]
[341513166,1730943038789,-500.0,0.00021431,2]
[341513167,1730943038799,-508.90957052,0.00021431,2]
[341513168,1730943038808,-500.0,0.00021431,2]
[341513169,1730943038817,-285.03844945,0.00021431,2]
[341513170,1730943038829,-8262.19482367,0.00021639,2]
[341513171,1730943038838,-8262.19482367,0.00021705,2]
[341513172,1730943038848,-501.29854158,0.00021917,2]
[341513173,1730943038857,-693.31,0.00021917,2]
[341513174,1730943038867,-735.56,0.00021917,2]
[341513175,1730943038876,-500.0,0.00021917,2]
[341513176,1730943038885,-509.36116123,0.00021917,2]
[341513177,1730943038894,-500.0,0.00021917,2]
[341513178,1730943038904,-500.0,0.00021917,2]
[341513179,1730943038913,-267.78009866,0.00021999,2]
[341513181,1730943038922,-519.72759475,0.00021999,2]
[341513182,1730943038931,-500.0,0.00021999,2]
[341513183,1730943038940,-206.02247333,0.00021999,2]
[341513184,1730943038950,-315.94995182,0.00021999,2]
[341513188,1730943039081,-243.94519021,0.00021999,2]
[341513189,1730943039091,-30289.24233911,0.00022,30]